fUST/lending_fUST_20260419
["ID","MTS","AMOUNT","RATE_DAILY","PERIOD"]
[420797890,1776531628580,701.37,0.00024657,120]
[420797893,1776531628849,701.37,0.00024657,120]
[420797895,1776531629094,701.37,0.00024657,120]
[420797897,1776531629323,701.37,0.00024657,120]
[420797900,1776531629564,701.37,0.00024657,120]
[420797902,1776531629793,701.37,0.00024657,120]
[420797904,1776531630051,701.37,0.00024657,120]
[420797907,1776531630278,701.37,0.00024657,120]
[420797909,1776531630514,701.37,0.00024657,120]
[420797912,1776531630755,701.37,0.00024657,120]
[420797914,1776531630990,701.37,0.00024657,120]
[420797916,1776531631218,701.37,0.00024657,120]
[420797921,1776531631826,500.0,0.00024657,120]
[420797923,1776531632063,500.0,0.00024657,120]
[420797925,1776531632300,500.0,0.00024657,120]
[420797927,1776531632544,701.37,0.00024657,120]
[420797929,1776531632632,701.37,0.00024657,120]
[420797931,1776531632836,701.37,0.00024657,120]
[420797934,1776531633076,701.37,0.00024657,120]
[420797936,1776531633366,338.73,0.00024657,120]
[420797938,1776531633447,701.37,0.00024657,120]
[420797940,1776531633591,701.37,0.00024657,120]
[420797942,1776531633825,701.37,0.00024657,120]
[420797947,1776531634464,701.37,0.00024657,120]
[420797949,1776531634751,701.37,0.00024657,120]
[420797952,1776531635063,701.37,0.00024657,120]
[420797955,1776531635319,701.37,0.00024657,120]
[420797957,1776531635545,701.54,0.00024657,120]
[420797980,1776531639306,500.0,0.00024657,120]
[420797982,1776531639438,500.0,0.00024657,120]
[420797983,1776531639571,500.0,0.00024657,120]
[420797985,1776531639668,500.0,0.00024657,120]
[420797987,1776531639812,500.0,0.00024657,120]
[420797988,1776531639898,500.0,0.00024657,120]
[420797990,1776531640120,578.34,0.00024657,120]
[420798021,1776531645293,500.0,0.00024657,120]
[420798024,1776531645517,500.0,0.00024657,120]
[420798026,1776531645753,500.0,0.00024657,120]
[420798028,1776531645983,500.0,0.00024657,120]
[420798030,1776531646195,500.0,0.00024657,120]
[420798033,1776531646427,500.0,0.00024657,120]
[420798035,1776531646648,500.0,0.00024657,120]
[420798037,1776531646877,500.0,0.00024657,120]
[420798040,1776531647123,500.0,0.00024657,120]
[420798042,1776531647338,500.0,0.00024657,120]
[420798043,1776531647418,500.0,0.00024657,120]
[420798045,1776531647574,500.0,0.00024657,120]
[420798047,1776531647656,500.0,0.00024657,120]
[420798048,1776531647779,500.0,0.00024657,120]
[420798050,1776531647864,500.0,0.00024657,120]
[420798051,1776531647961,500.0,0.00024657,120]
[420798053,1776531648064,500.0,0.00024657,120]
[420798055,1776531648194,330.0,0.00024657,120]
[420798057,1776531648352,500.0,0.00024657,120]
[420798059,1776531648579,500.0,0.00024657,120]
[420798061,1776531648799,500.0,0.00024657,120]
[420798064,1776531649061,500.0,0.00024657,120]
[420798066,1776531649271,500.0,0.00024657,120]
[420798068,1776531649507,500.0,0.00024657,120]
[420798071,1776531649760,500.0,0.00024657,120]
[420798074,1776531650200,500.0,0.00024657,120]
[420798076,1776531650440,500.0,0.00024657,120]
[420798078,1776531650681,500.0,0.00024657,120]
[420798080,1776531650919,164.25,0.00024657,120]
[420798108,1776531655600,500.0,0.00024657,120]
[420798110,1776531655851,500.0,0.00024657,120]
[420798112,1776531656071,500.0,0.00024657,120]
[420798115,1776531656290,500.0,0.00024657,120]
[420798117,1776531656518,500.0,0.00024657,120]
[420798119,1776531656742,287.16,0.00024657,120]
[420798128,1776531658152,500.0,0.00024657,120]
[420798131,1776531658373,500.0,0.00024657,120]
[420798133,1776531658603,500.0,0.00024657,120]
[420798135,1776531658861,467.1,0.00024657,120]
[420798153,1776531661695,-683.04836346,5e-05,2]
[420798154,1776531661707,-2556.85431684,5e-05,2]
[420798155,1776531661718,-683.04836346,7.6e-05,2]
[420798223,1776531674340,500.0,0.00024657,120]
[420798225,1776531674567,500.0,0.00024657,120]
[420798227,1776531674791,500.0,0.00024657,120]
[420798247,1776531678102,500.0,0.00024657,120]
[420798249,1776531678325,500.0,0.00024657,120]
[420798252,1776531678553,500.0,0.00024657,120]
[420798254,1776531678782,500.0,0.00024657,120]
[420798265,1776531680612,500.0,0.00024657,120]
[420798269,1776531681176,500.0,0.00024657,120]
[420798271,1776531681402,500.0,0.00024657,120]
[420798276,1776531682085,500.0,0.00024657,120]
[420798297,1776531685658,500.0,0.00024657,120]
[420798351,1776531694814,500.0,0.00024657,120]
[420798353,1776531694899,500.0,0.00024657,120]
[420798354,1776531694975,500.0,0.00024657,120]
[420798355,1776531695063,500.0,0.00024657,120]
[420798357,1776531695141,500.0,0.00024657,120]
[420798359,1776531695291,524.91,0.00024657,120]
[420798360,1776531695363,627.20610012,0.00024657,120]
[420798395,1776531701224,500.0,0.00024657,120]
[420798397,1776531701465,500.0,0.00024657,120]
[420798399,1776531701707,500.0,0.00024657,120]
[420798402,1776531701961,500.0,0.00024657,120]
[420798404,1776531702204,389.5,0.00024657,120]
[420798444,1776531708785,500.0,0.00024657,120]
[420798446,1776531709020,500.0,0.00024657,120]
[420798452,1776531709806,500.0,0.00024657,120]
[420798454,1776531710035,500.0,0.00024657,120]
[420798457,1776531710281,500.0,0.00024657,120]
[420798459,1776531710527,500.0,0.00024657,120]
[420798536,1776531724122,500.0,0.00024657,120]
[420798538,1776531724360,500.0,0.00024657,120]
[420798541,1776531724616,500.0,0.00024657,120]
[420798575,1776531730772,500.0,0.00024657,120]
[420798578,1776531731031,500.0,0.00024657,120]
[420798580,1776531731261,500.0,0.00024657,120]
[420798591,1776531733017,500.0,0.00024657,120]
[420798594,1776531733298,500.0,0.00024657,120]
[420798596,1776531733395,500.0,0.00024657,120]
[420798597,1776531733535,500.0,0.00024657,120]
[420798599,1776531733626,500.0,0.00024657,120]
[420798641,1776531740810,500.0,0.00024657,120]
[420798643,1776531741055,500.0,0.00024657,120]
[420798646,1776531741287,500.0,0.00024657,120]
[420798648,1776531741516,348.74,0.00024657,120]
[420798690,1776531749272,500.0,0.00024657,120]
[420798691,1776531749349,500.0,0.00024657,120]
[420798693,1776531749498,500.0,0.00024657,120]
[420798694,1776531749580,500.0,0.00024657,120]
[420798696,1776531749741,500.0,0.00024657,120]
[420798709,1776531751743,500.0,0.00024657,120]
[420798710,1776531751871,500.0,0.00024657,120]
[420798712,1776531752003,500.0,0.00024657,120]
[420798714,1776531752112,500.0,0.00024657,120]
[420798716,1776531752334,500.0,0.00024657,120]
[420798721,1776531752986,500.0,0.00024657,120]
[420798723,1776531753216,500.0,0.00024657,120]
[420798725,1776531753437,500.0,0.00024657,120]
[420798747,1776531757023,500.0,0.00024657,120]
[420798749,1776531757197,500.0,0.00024657,120]
[420798751,1776531757447,500.0,0.00024657,120]
[420798762,1776531759149,523.99999999,0.00023665,120]
[420798772,1776531760670,500.0,0.00024657,120]
[420798774,1776531760888,500.0,0.00024657,120]
[420798826,1776531770149,620.45,0.00024657,120]
[420798854,1776531774926,500.0,0.00024657,120]
[420798856,1776531775151,500.0,0.00024657,120]
[420798859,1776531775457,500.0,0.00024657,120]
[420798875,1776531777992,500.0,0.00024657,120]
[420798877,1776531778221,500.0,0.00024657,120]
[420798885,1776531779405,500.0,0.00024657,120]
[420798936,1776531788026,500.0,0.00024657,120]
[420798938,1776531788196,500.0,0.00024657,120]
[420798943,1776531788850,500.0,0.00024657,120]
[420798945,1776531789080,500.0,0.00024657,120]
[420798958,1776531791096,500.0,0.00024657,120]
[420798961,1776531791325,500.0,0.00024657,120]
[420798982,1776531794844,500.0,0.00024657,120]
[420798985,1776531795218,500.0,0.00024657,120]
[420799001,1776531797594,500.0,0.00024657,120]
[420799003,1776531797826,500.0,0.00024657,120]
[420799007,1776531798230,500.0,0.00024657,120]
[420799008,1776531798301,156.8,0.00024657,120]
[420799021,1776531800247,500.0,0.00024657,120]
[420799023,1776531800482,500.0,0.00024657,120]
[420799050,1776531804907,500.0,0.00024657,120]
[420799053,1776531805135,500.0,0.00024657,120]
[420799055,1776531805362,189.04,0.00024657,120]
[420799063,1776531806542,500.0,0.00024657,120]
[420799065,1776531806774,500.0,0.00024657,120]
[420799067,1776531807015,500.0,0.00024657,120]
[420799069,1776531807171,500.0,0.00024657,120]
[420799091,1776531811339,500.0,0.00024657,120]
[420799093,1776531811560,500.0,0.00024657,120]
[420799096,1776531811792,500.0,0.00024657,120]
[420799098,1776531812053,500.0,0.00024657,120]
[420799101,1776531812288,500.0,0.00024657,120]
[420799103,1776531812527,500.0,0.00024657,120]
[420799105,1776531812716,500.0,0.00024657,120]
[420799107,1776531812791,500.0,0.00024657,120]
[420799109,1776531812954,500.0,0.00024657,120]
[420799111,1776531813201,500.0,0.00024657,120]
[420799115,1776531813696,579.06,0.00024657,120]
[420799117,1776531813924,500.0,0.00024657,120]
[420799120,1776531814194,500.0,0.00024657,120]
[420799138,1776531817040,500.0,0.00024657,120]
[420799140,1776531817275,500.0,0.00024657,120]
[420799160,1776531820587,500.0,0.00024657,120]
[420799161,1776531820809,500.0,0.00024657,120]
[420799197,1776531826767,500.0,0.00024657,120]
[420799200,1776531826997,500.0,0.00024657,120]
[420799202,1776531827231,500.0,0.00024657,120]
[420799204,1776531827460,500.0,0.00024657,120]
[420799207,1776531827702,500.0,0.00024657,120]
[420799210,1776531827971,273.42,0.00024657,120]
[420799252,1776531834822,500.0,0.00024657,120]
[420799322,1776531846497,500.0,0.00024657,120]
[420799325,1776531846897,500.0,0.00024657,120]
[420799327,1776531847154,500.0,0.00024657,120]
[420799348,1776531850614,509.8436248,0.00024657,120]
[420799350,1776531850688,500.0,0.00024657,120]
[420799372,1776531854661,500.0,0.00024657,120]
[420799374,1776531854928,500.0,0.00024657,120]
[420799377,1776531855151,500.0,0.00024657,120]
[420799400,1776531859152,500.0,0.00024657,120]
[420799417,1776531861851,536.73509044,0.00024657,120]
[420799453,1776531867982,500.0,0.00024657,120]
[420799457,1776531868481,500.0,0.00024657,120]
[420799459,1776531868717,500.0,0.00024657,120]
[420799496,1776531874623,500.0,0.00024657,120]
[420799503,1776531875609,500.0,0.00024657,120]
[420799506,1776531875885,500.0,0.00024657,120]
[420799508,1776531876087,372.88,0.00024657,120]
[420799553,1776531883620,500.0,0.00024657,120]
[420799598,1776531891802,500.0,0.00024657,120]
[420799601,1776531892031,500.0,0.00024657,120]
[420799603,1776531892260,500.0,0.00024657,120]
[420799633,1776531897485,500.0,0.00024657,120]
[420799635,1776531897709,500.0,0.00024657,120]
[420799638,1776531897969,500.0,0.00024657,120]
[420799639,1776531898120,500.0,0.00024657,120]
[420799690,1776531907392,473.24753866,0.00024657,120]
[420799717,1776531911800,500.0,0.00024657,120]
[420799718,1776531911875,500.0,0.00024657,120]
[420799720,1776531912097,500.0,0.00024657,120]
[420799726,1776531912819,500.0,0.00024657,120]
[420799728,1776531913064,500.0,0.00024657,120]
[420799730,1776531913310,500.0,0.00024657,120]
[420799733,1776531913551,508.84207456,0.00024657,120]
[420799736,1776531913874,500.0,0.00024657,120]
[420799738,1776531914103,500.0,0.00024657,120]
[420799740,1776531914339,500.0,0.00024657,120]
[420799750,1776531915784,564.69,0.00024657,120]
[420799755,1776531916430,500.0,0.00024657,120]
[420799761,1776531917275,500.0,0.00024657,120]
[420799763,1776531917503,500.0,0.00024657,120]
[420799767,1776531917989,500.0,0.00024657,120]
[420799769,1776531918081,500.0,0.00024657,120]
[420799811,1776531925460,500.0,0.00024657,120]
[420799823,1776531927234,598.99,0.00024657,120]
[420799865,1776531936334,500.0,0.00024657,120]
[420799884,1776531939841,553.78375983,0.00024657,120]
[420799890,1776531940843,500.0,0.00024657,120]
[420799906,1776531943317,622.5448464,0.00024657,120]
[420799917,1776531945099,500.0,0.00024657,120]
[420799919,1776531945330,500.0,0.00024657,120]
[420799922,1776531945563,500.0,0.00024657,120]
[420799924,1776531945800,500.0,0.00024657,120]
[420799936,1776531947574,508.94602844,0.00024657,120]
[420799953,1776531950708,509.89419715,0.00024657,120]
[420799963,1776531952183,508.76329521,0.00024657,120]
[420799973,1776531953703,500.0,0.00024657,120]
[420799985,1776531955516,500.0,0.00024657,120]
[420799986,1776531955592,500.0,0.00024657,120]
[420799988,1776531955784,500.0,0.00024657,120]
[420799991,1776531956011,500.0,0.00024657,120]
[420800001,1776531957547,500.0,0.00024657,120]
[420800005,1776531958119,500.0,0.00024657,120]
[420800008,1776531958359,500.0,0.00024657,120]
[420800010,1776531958580,500.0,0.00024657,120]
[420800020,1776531960122,500.0,0.00024657,120]
[420800022,1776531960340,500.0,0.00024657,120]
[420800024,1776531960527,500.0,0.00024657,120]
[420800026,1776531960607,500.0,0.00024657,120]
[420800027,1776531960692,500.0,0.00024657,120]
[420800029,1776531960771,500.0,0.00024657,120]
[420800030,1776531960852,500.0,0.00024657,120]
[420800051,1776531964353,227.27834756,0.00024657,120]
[420800070,1776531967566,500.0,0.00024657,120]
[420800073,1776531967817,350.10065437,0.00024657,120]
[420800093,1776531971054,504.26390527,0.00024657,120]
[420800115,1776531974736,500.0,0.00024657,120]
[420800118,1776531974973,500.0,0.00024657,120]
[420800120,1776531975195,184.43902125,0.00024657,120]
[420800141,1776531978594,500.0,0.00024657,120]
[420800147,1776531979575,500.0,0.00024657,120]
[420800150,1776531979813,500.0,0.00024657,120]
[420800152,1776531980045,527.55,0.00024657,120]
[420800153,1776531980122,500.0,0.00024657,120]
[420800157,1776531980802,500.0,0.00024657,120]
[420800160,1776531981203,500.0,0.00024657,120]
[420800163,1776531981417,500.0,0.00024657,120]
[420800169,1776531982425,500.0,0.00024657,120]
[420800172,1776531982655,500.0,0.00024657,120]
[420800174,1776531982885,500.0,0.00024657,120]
[420800178,1776531983563,506.45348785,0.00024657,120]
[420800204,1776531987837,502.51909219,0.00024657,120]
[420800209,1776531988550,601.57,0.00024657,120]
[420800309,1776532005826,500.0,0.00024657,120]
[420800311,1776532005980,500.0,0.00024657,120]
[420800312,1776532006068,500.0,0.00024657,120]
[420800315,1776532006291,500.0,0.00024657,120]
[420800330,1776532008970,500.0,0.00024657,120]
[420800331,1776532009046,500.0,0.00024657,120]
[420800334,1776532009283,500.0,0.00024657,120]
[420800336,1776532009527,342.83924686,0.00024657,120]
[420801553,1776532232158,-1051.43828814,7.375e-05,2]
[420801600,1776532238530,-3948.56171186,7.375e-05,2]
[420801601,1776532238540,-215.36007818,7.506e-05,2]
[420801602,1776532238550,-26701.15747208,7.6e-05,2]
[420801603,1776532238607,-4907.41592388,7.6e-05,2]
[420801604,1776532238617,-163.0743128,9.204e-05,2]
[420801605,1776532238627,-115.52886769,9.506e-05,2]
[420801607,1776532238689,-138.59602456,9.506e-05,2]
[420801608,1776532238699,-3022.24,9.863e-05,2]
[420801609,1776532238708,-2221.23149116,9.863e-05,2]
[420801610,1776532238795,-800.99850884,9.863e-05,2]
[420801611,1776532238805,-217.92341978,0.00010499,2]
[420801612,1776532238815,-500.0,0.00010499,2]
[420801613,1776532238824,-500.0,0.00010499,2]
[420801614,1776532238833,-321.05902551,0.00010499,2]
[420801615,1776532238842,-500.0,0.00010499,2]
[420801616,1776532238852,-500.0,0.00010499,2]
[420801618,1776532238862,-572.25966321,0.00010499,2]
[420801619,1776532238872,-246.54020245,0.00010499,2]
[420801620,1776532238882,-500.0,0.00010499,2]
[420801621,1776532238891,-500.0,0.00010499,2]
[420801622,1776532238901,-500.0,0.00010499,2]
[420801623,1776532238911,-500.0,0.00010499,2]
[420801624,1776532238920,-500.0,0.00010499,2]
[420801625,1776532238930,-500.0,0.00010499,2]
[420801626,1776532238940,-233.72932816,0.00010499,2]
[420801627,1776532238950,-500.0,0.00010499,2]
[420801628,1776532238961,-500.0,0.00010499,2]
[420801629,1776532238970,-500.0,0.00010499,2]
[420801630,1776532238980,-500.0,0.00010499,2]
[420801631,1776532238989,-500.0,0.00010499,2]
[420801632,1776532238999,-500.0,0.00010499,2]
[420801633,1776532239009,-500.0,0.00010499,2]
[420801634,1776532239019,-500.0,0.00010499,2]
[420801635,1776532239033,-500.0,0.00010499,2]
[420801636,1776532239044,-500.0,0.00010499,2]
[420801638,1776532239054,-500.0,0.00010499,2]
[420801639,1776532239064,-500.0,0.00010499,2]
[420801640,1776532239074,-500.0,0.00010499,2]
[420801641,1776532239084,-500.0,0.00010499,2]
[420801642,1776532239093,-500.0,0.00010499,2]
[420801643,1776532239103,-500.0,0.00010499,2]
[420801644,1776532239113,-500.0,0.00010499,2]
[420801645,1776532239123,-500.0,0.00010499,2]
[420801646,1776532239133,-500.0,0.00010499,2]
[420801647,1776532239143,-303.87995952,0.000105,2]
[420801648,1776532239152,-342.86856048,0.000105,2]
[420801649,1776532239162,-733.90879879,0.000105,2]
[420801650,1776532239172,-650.56666669,0.000105,2]
[420801651,1776532239182,-8934.59933676,0.000105,2]
[420801652,1776532239191,-691.152,0.00010546,2]
[420801653,1776532239201,-1408.0,0.00010546,2]
[420801654,1776532239211,-441.0,0.00010566,2]
[420801655,1776532239221,-187.0,0.00010566,2]
[420801657,1776532239230,-500.0,0.0001057,2]
[420801658,1776532239241,-328.52431565,0.00010572,2]
[420801659,1776532239250,-738395.17537354,0.00010573,2]
[420801660,1776532239260,-154.93122674,0.00010573,2]
[420801661,1776532239270,-500.0,0.00010573,2]
[420801662,1776532239279,-500.0,0.00010573,2]
[420801663,1776532239289,-500.0,0.00010573,2]
[420801664,1776532239298,-500.0,0.00010573,2]
[420801665,1776532239307,-500.0,0.00010573,2]
[420801666,1776532239319,-500.0,0.00010573,2]
[420801667,1776532239328,-500.0,0.00010573,2]
[420801668,1776532239338,-163.74572845,0.00010573,2]
[420801669,1776532239347,-500.0,0.00010573,2]
[420801670,1776532239356,-500.0,0.00010573,2]
[420801671,1776532239366,-508.42731575,0.00010573,2]
[420801672,1776532239376,-450469.01503751,0.00010573,2]
[420801678,1776532240534,-37930.5,0.00010573,2]
[420801679,1776532240589,-1631.0,0.00010573,2]
[420801681,1776532240601,-12641.75347559,0.00010573,2]
[420801716,1776532246536,-1443.25030795,0.0001007,2]
[420801721,1776532247334,-1029.87417565,0.0001007,2]
[420801722,1776532247343,-1087.45779767,0.00010468,2]
[420801723,1776532247388,-3232.90007557,0.00010468,2]
[420803128,1776532538435,4360.93,0.00023666,120]
[420803362,1776532837558,872.18,0.00023579,120]
[420803366,1776532946691,529317.32488876,0.00023579,120]
[420803384,1776533137688,218.04,0.00023579,120]
[420803385,1776533139463,298.25,0.00023579,120]
[420803398,1776533224190,233.47,0.00023579,120]
[420803459,1776533438830,-1869.32887476,4.706e-05,2]
[420803460,1776533438842,-2232.619745,4.706e-05,2]
[420803461,1776533439046,-473.57376399,4.706e-05,2]
[420803469,1776533442135,-424.47761625,4.706e-05,2]
[420803470,1776533442145,-205.97037877,4.802e-05,2]
[420803471,1776533442155,-164.424937,4.863e-05,2]
[420803472,1776533442164,-243.04504695,6.802e-05,2]
[420803473,1776533442174,-164.424937,7.294e-05,2]
[420803474,1776533442184,-530.56106716,8.634e-05,2]
[420803475,1776533442193,-280.11971513,8.802e-05,2]
[420803476,1776533442202,-243.87242665,9.051e-05,120]
[420803477,1776533442212,-164.424937,9.726e-05,2]
[420803478,1776533442221,-455.503742,0.0001027,2]
[420803479,1776533442230,-277.43275439,0.0001057,2]
[420803533,1776533443698,-358.15460331,0.0001057,2]
[420803535,1776533443707,-461.36101994,0.0001057,2]
[420803914,1776534227217,2145.45,0.0002358,120]
[420803915,1776534234262,2065.57,0.0002358,120]
[420803916,1776534268558,1279.33,0.0002358,120]
[420803917,1776534282860,1044.76,0.0002358,120]
[420804210,1776534638951,-1289.70641936,9.701e-05,2]
[420804211,1776534638963,-3710.29358064,9.701e-05,2]
[420804212,1776534638973,-906.80000301,9.814e-05,2]
[420804213,1776534638983,-3627.20001204,9.814e-05,2]
[420804214,1776534638994,-198.68160548,9.899e-05,2]
[420804215,1776534639004,-455.4262916,0.00010267,2]
[420804216,1776534639014,-151.0,0.00010267,2]
[420804217,1776534639024,-366.4724205,0.0001033,2]
[420804218,1776534639034,-195.92739912,0.0001033,2]
[420804219,1776534639045,-1268.49639321,0.0001033,2]
[420804220,1776534639054,-846.5295178,0.00010543,2]
[420804221,1776534639063,-537.6845,0.00010952,2]
[420804222,1776534639073,-162.380719,0.00010952,2]
[420804223,1776534639083,-151.0,0.00010952,2]
[420804224,1776534639094,-151.0,0.00010952,2]
[420804226,1776534639103,-151.0,0.00010952,2]
[420804227,1776534639115,-151.0,0.00010952,2]
[420804228,1776534639124,-151.0,0.00010952,2]
[420804229,1776534639133,-56.61245574,0.00010952,2]
[420804233,1776534639737,-94.38754426,0.00010952,2]
[420804234,1776534639746,-151.0,0.00010952,2]
[420804235,1776534639755,-151.0,0.00010952,2]
[420804236,1776534639764,-151.0,0.00010952,2]
[420804237,1776534639773,-151.0,0.00010952,2]
[420804238,1776534639783,-42.00245574,0.00010952,2]
[420804246,1776534641120,-495.68204426,0.00010952,2]
[420804247,1776534641131,-151.0,0.00010952,2]
[420804248,1776534641141,-151.0,0.00010952,2]
[420804249,1776534641151,-151.0,0.00010952,2]
[420804250,1776534641161,-151.0,0.00010952,2]
[420804251,1776534641172,-151.0,0.00010952,2]
[420804252,1776534641182,-151.0,0.00010952,2]
[420804253,1776534641194,-151.0,0.00010952,2]
[420804254,1776534641203,-151.0,0.00010952,2]
[420804255,1776534641214,-2150.738,0.00010952,2]
[420804257,1776534641224,-151.0,0.00010952,2]
[420804258,1776534641232,-151.0,0.00010952,2]
[420804259,1776534641242,-245.0,0.00010959,3]
[420804260,1776534641251,-2825.20995574,0.00010959,2]
[420804261,1776534641268,-12555.16364426,0.00010959,2]
[420804262,1776534641277,-150.0,0.0001096,2]
[420804263,1776534641288,-557.5788265,0.00011007,2]
[420804264,1776534641299,-578.20924308,0.00011062,2]
[420804265,1776534641308,-406.271483,0.00011114,2]
[420804266,1776534641318,-733.1398965,0.00011117,2]
[420804267,1776534641327,-441.0,0.000112,2]
[420804268,1776534641337,-150.0,0.0001126,2]
[420804269,1776534641346,-557.5788265,0.000115,2]
[420804270,1776534641358,-2230.315306,0.000115,2]
[420804271,1776534641368,-600.0,0.00011505,2]
[420804272,1776534641377,-150.0,0.0001156,2]
[420804273,1776534641387,-406.271483,0.00011581,2]
[420804275,1776534641396,-150.0,0.0001179,2]
[420804276,1776534641405,-846.5295178,0.00011876,2]
[420804277,1776534641417,-234.44429446,0.00011899,2]
[420804278,1776534641426,-500.0,0.00011899,2]
[420804279,1776534641435,-151.0,0.00011981,2]
[420804280,1776534641444,-2312.83697232,0.00012048,2]
[420804281,1776534641454,-406.271483,0.00012049,2]
[420804282,1776534641463,-150.0,0.0001209,2]
[420804283,1776534641472,-500.0,0.00012173,2]
[420804284,1776534641482,-150.0,0.0001239,2]
[420804285,1776534641491,-229.96702095,0.00012472,2]
[420804286,1776534641501,-500.0,0.00012472,2]
[420804287,1776534641511,-500.0,0.00012472,2]
[420804288,1776534641521,-500.0,0.00012472,2]
[420804289,1776534641531,-500.0,0.00012472,2]
[420804290,1776534641541,-500.0,0.00012472,2]
[420804291,1776534641550,-500.0,0.00012472,2]
[420804292,1776534641562,-329.26011565,0.00012472,2]
[420804293,1776534641571,-500.0,0.00012472,2]
[420804295,1776534641580,-500.0,0.00012472,2]
[420804296,1776534641591,-500.0,0.00012472,2]
[420804297,1776534641601,-500.0,0.00012472,2]
[420804298,1776534641610,-500.0,0.00012472,2]
[420804299,1776534641620,-500.0,0.00012472,2]
[420804300,1776534641630,-563.58440702,0.00012472,2]
[420804301,1776534641640,-500.0,0.00012472,2]
[420804302,1776534641649,-581.52548091,0.00012472,2]
[420804303,1776534641659,-500.0,0.00012472,2]
[420804304,1776534641669,-500.0,0.00012472,2]
[420804305,1776534641679,-500.0,0.00012472,2]
[420804306,1776534641688,-500.0,0.00012472,2]
[420804307,1776534641698,-500.0,0.00012472,2]
[420804308,1776534641709,-500.0,0.00012473,2]
[420804309,1776534641719,-39901.0216658,0.00012473,2]
[420804328,1776534644759,-1481.92,0.00010843,2]
[420804345,1776534647031,-470.09113638,0.00010843,2]
[420805695,1776535262754,-578.21304232,5e-05,2]
[420805696,1776535262784,-4046.68514611,6.713e-05,2]
[420805697,1776535262836,-270.26649043,6.713e-05,2]
[420805698,1776535292053,-683.04836346,6.713e-05,2]
[420805699,1776535292086,-202.76953271,6.815e-05,2]
[420805700,1776535292117,-966.59880046,6.849e-05,2]
[420805701,1776535292147,-161.09980006,6.849e-05,2]
[420805702,1776535292228,-597.86519505,7.123e-05,2]
[420805704,1776535321380,-212.27643332,7.052e-05,2]
[420805705,1776535321403,-1588.96363005,7.052e-05,2]
[420805706,1776535350645,-212.27643332,7.123e-05,2]
[420805748,1776535838258,-369.945,6.713e-05,2]
[420805749,1776535838268,-205.77408841,6.968e-05,2]
[420805750,1776535838277,-200.0,7.259e-05,2]
[420805751,1776535838286,-200.0,7.259e-05,2]
[420805752,1776535838297,-200.0,7.259e-05,7]